bitfinex-derivatives/quotes_BNBF0:USTF0_20251027
["timestamp","ask_amount","ask_price","bid_price","bid_amount"]
[1761548102817,0.15105183,1153.2,1151.4,0.56685664]
[1761548103021,0.15105183,1153.2,1151.5,0.56685664]
[1761548103222,0.15105183,1153.2,1151.6,0.56685664]
[1761548103521,0.15105183,1153.2,1151.7,0.56685664]
[1761548103719,0.15105183,1153.2,1151.3,1.74897686]
[1761548103918,0.15105183,1153.2,1151.4,0.56646288]
[1761548104120,0.15105183,1153.2,1151.5,0.56646288]
[1761548104317,0.15105183,1153.2,1151.3,1.74897686]
[1761548104318,0.15105183,1153.2,1151.6,0.56646288]
[1761548104517,0.15105183,1153.2,1151.7,0.56646288]
[1761548104717,0.15105183,1153.2,1151.3,1.74897686]
[1761548104918,0.15105183,1153.2,1151.4,0.5663189]
[1761548105117,0.15105183,1153.2,1151.5,0.5663189]
[1761548105318,0.15105183,1153.2,1151.6,0.5663189]
[1761548105518,0.15105183,1153.2,1151.7,0.5663189]
[1761548105717,0.15105183,1153.2,1151.3,1.74897686]
[1761548106021,0.15105183,1153.2,1151.4,0.56620071]
[1761548106323,0.15105183,1153.2,1151.5,0.56620071]
[1761548106524,0.15105183,1153.2,1151.6,0.56620071]
[1761548106821,0.15105183,1153.2,1151.7,0.56620071]
[1761548107124,0.15105183,1153.2,1151.3,1.74897686]
[1761548107319,0.15105183,1153.2,1151.4,0.56607356]
[1761548107519,0.15105183,1153.2,1151.5,0.56607356]
[1761548107722,0.15105183,1153.2,1151.6,0.56607356]
[1761548107920,0.15105183,1153.2,1151.7,0.56607356]
[1761548108125,0.15105183,1153.2,1151.3,1.74897686]
[1761548108323,0.15105183,1153.2,1151.4,0.56596502]
[1761548108523,0.15105183,1153.2,1151.5,0.56596502]
[1761548108721,0.15105183,1153.2,1151.6,0.56596502]
[1761548109020,0.15105183,1153.2,1151.7,0.56596502]
[1761548109223,0.15105183,1153.2,1151.3,1.74897686]
[1761548109422,0.15105183,1153.2,1151.4,0.56579995]
[1761548109622,0.15105183,1153.2,1151.5,0.56579995]
[1761548109821,0.15105183,1153.2,1151.6,0.56579995]
[1761548110026,0.15105183,1153.2,1151.7,0.56579995]
[1761548110223,0.15105183,1153.2,1151.3,1.109]
[1761548110427,0.15105183,1153.2,1151.4,0.56568551]
[1761548110726,0.15105183,1153.2,1151.5,0.56568551]
[1761548110926,0.15105183,1153.2,1151.6,0.56568551]
[1761548111125,0.15105183,1153.2,1151.7,0.56568551]
[1761548111326,0.15105183,1153.2,1151.3,1.109]
[1761548111527,0.15105183,1153.2,1151.4,0.56554945]
[1761548111823,0.15105183,1153.2,1151.5,0.56554945]
[1761548112127,0.15105183,1153.2,1151.6,0.56554945]
[1761548112326,0.15105183,1153.2,1151.7,0.56554945]
[1761548112525,0.15105183,1153.2,1151.3,1.109]
[1761548112724,0.15105183,1153.2,1151.4,0.56545877]
[1761548112923,0.15105183,1153.2,1151.5,0.56545877]
[1761548113123,0.15105183,1153.2,1151.6,0.56545877]
[1761548113332,0.15105183,1153.2,1151.2,0.63997686]
[1761548113529,0.15105183,1153.2,1151.3,0.56538219]
[1761548113728,0.15105183,1153.2,1151.4,0.56538219]
[1761548113928,0.15105183,1153.2,1151.5,0.56538219]
[1761548114125,0.15105183,1153.2,1151.6,0.56538219]
[1761548114324,0.15105183,1153.2,1151.7,0.56538219]
[1761548114526,0.15105183,1153.2,1151.1,0.63997686]
[1761548114728,0.15105183,1153.2,1151.2,0.56529155]
[1761548114926,0.15105183,1153.2,1151.3,0.56529155]
[1761548115224,0.15105183,1153.2,1151.4,0.56529155]
[1761548115426,0.15105183,1153.2,1151.5,0.56529155]
[1761548115627,0.15105183,1153.2,1151.6,0.56529155]
[1761548115825,0.15105183,1153.2,1151.7,1.71129155]
[1761548116023,0.15105183,1153.2,1151.7,1.146]
[1761548118928,2.1611392,1155.2,1151.7,1.146]
[1761548119229,0.15097843,1153.5,1151.7,1.146]
[1761548119731,0.15098171,1153.5,1151.7,1.146]
[1761548120633,0.15098171,1153.5,1151.8,0.56480835]
[1761548120833,0.15098171,1153.5,1151.7,1.146]
[1761548133439,0.15098171,1153.5,1151.8,0.56377679]
[1761548133640,0.15098171,1153.5,1151.7,1.146]
[1761548147656,0.15098171,1153.5,1151.8,0.56522568]
[1761548147857,0.15098171,1153.5,1151.7,1.146]
[1761548148157,0.15098171,1153.5,1151.8,0.56521575]
[1761548148356,0.15098171,1153.5,1151.9,0.56521575]
[1761548148556,0.15098171,1153.5,1151.7,1.146]
[1761548148757,0.15098171,1153.5,1151.8,0.56528501]
[1761548148953,0.15098171,1153.5,1151.9,0.56528501]
[1761548149257,0.15098171,1153.5,1151.7,1.146]
[1761548149457,0.15098171,1153.5,1151.8,0.56541773]
[1761548149658,0.15098171,1153.5,1151.9,0.56541773]
[1761548149855,0.15098171,1153.5,1151.7,1.146]
[1761548150059,0.15098171,1153.5,1151.8,0.56534059]
[1761548150355,0.15098171,1153.5,1151.9,0.56534059]
[1761548150556,0.15098171,1153.5,1151.7,1.146]
[1761548150861,0.15098171,1153.5,1151.8,0.56552678]
[1761548151055,0.15098171,1153.5,1151.9,0.56552678]
[1761548151260,0.15098171,1153.5,1152.0,0.56552678]
[1761548151557,0.15098171,1153.5,1151.7,1.146]
[1761548151755,0.15098171,1153.5,1151.8,0.56569883]
[1761548151955,0.15098171,1153.5,1151.9,0.56569883]
[1761548152158,0.15098171,1153.5,1152.0,0.56569883]
[1761548152360,0.15098171,1153.5,1151.7,1.146]
[1761548152561,0.15098171,1153.5,1151.8,0.56592136]
[1761548152759,0.15098171,1153.5,1151.9,0.56592136]
[1761548152962,0.15098171,1153.5,1152.0,0.56592136]
[1761548153257,0.15098171,1153.5,1151.7,1.146]
[1761548153462,0.15098171,1153.5,1151.8,0.56604698]
[1761548153658,0.15098171,1153.5,1151.9,0.56604698]
[1761548153862,0.15098171,1153.5,1152.0,0.56604698]
[1761548154063,0.15098171,1153.5,1151.7,1.146]
[1761548154264,0.15098171,1153.5,1151.8,0.56604644]
[1761548154557,0.15098171,1153.5,1151.9,0.56604644]
[1761548154760,0.15098171,1153.5,1152.0,0.56604644]
[1761548154962,0.15098171,1153.5,1152.1,0.56604644]
[1761548155160,0.15098171,1153.5,1151.7,1.146]
[1761548155461,0.15098171,1153.5,1151.8,0.56599235]
[1761548155658,0.15098171,1153.5,1151.9,0.56599235]
[1761548155862,0.15098171,1153.5,1151.7,1.146]
[1761548155863,0.15098171,1153.5,1152.0,0.56599235]
[1761548156059,0.15098171,1153.5,1152.1,0.56599235]
[1761548156259,0.15098171,1153.5,1152.2,0.56599235]
[1761548156458,0.15098171,1153.5,1151.7,1.146]
[1761548156760,0.15098171,1153.5,1151.8,0.56595028]
[1761548156959,0.15098171,1153.5,1151.9,0.56595028]
[1761548157258,0.15098171,1153.5,1152.0,0.56595028]
[1761548157459,0.15098171,1153.5,1152.1,0.56595028]
[1761548157758,0.15098171,1153.5,1152.2,0.56595028]
[1761548157962,0.15098171,1153.5,1151.7,1.146]
[1761548158163,0.15098171,1153.5,1151.8,0.56595039]
[1761548158363,0.15098171,1153.5,1151.9,0.56595039]
[1761548158564,0.15098171,1153.5,1152.0,0.56595039]
[1761548158859,0.15098171,1153.5,1152.1,0.56595039]
[1761548159161,0.15098171,1153.5,1152.2,0.56595039]
[1761548159360,0.15098171,1153.5,1151.7,1.146]
[1761548159565,0.15098171,1153.5,1151.8,0.56598233]
[1761548159764,0.15098171,1153.5,1151.9,0.56598233]
[1761548159962,0.15098171,1153.5,1152.0,0.56598233]
[1761548160164,0.15098171,1153.5,1151.7,1.146]
[1761548160165,0.15098171,1153.5,1152.1,0.56598233]
[1761548160460,0.15098171,1153.5,1152.2,0.56598233]
[1761548160664,0.15098171,1153.5,1151.7,1.146]
[1761548160863,0.15098171,1153.5,1151.8,0.56598233]
[1761548161065,0.15098171,1153.5,1151.9,0.56598233]
[1761548161265,0.15098171,1153.5,1152.0,0.56598233]
[1761548161562,0.15098171,1153.5,1152.1,0.56598233]
[1761548161766,0.15098171,1153.5,1152.2,0.56598233]
[1761548161966,0.15098171,1153.5,1151.5,0.63997686]
[1761548162165,0.15098171,1153.5,1151.6,0.56609201]
[1761548162462,0.15098171,1153.5,1151.7,0.56609201]
[1761548162667,0.15098171,1153.5,1151.8,0.56609201]
[1761548162864,2.1611392,1155.5,1151.9,0.56609201]
[1761548163064,2.1611392,1155.5,1152.0,0.56609201]
[1761548163264,0.150947,1153.8,1152.1,0.56609201]
[1761548163465,2.1611392,1155.5,1152.2,0.56609201]
[1761548163665,0.15093652,1153.8,1152.3,0.56609201]
[1761548163864,0.15093652,1153.8,1151.6,0.63997686]
[1761548164168,2.1611392,1155.5,1151.7,0.56621691]
[1761548164463,0.15095289,1153.8,1151.8,0.56621691]
[1761548164665,2.1611392,1155.3,1151.9,0.56621691]
[1761548164862,0.15094962,1154.6,1152.0,0.56621691]
[1761548165062,0.15094962,1154.6,1152.1,2.18221691]
[1761548165268,0.15094962,1154.6,1152.2,0.56621691]
[1761548165468,2.1611392,1154.2,1152.1,1.616]
[1761548165668,2.1611392,1154.2,1152.2,0.56599216]
[1761548165869,2.1611392,1154.2,1152.1,1.616]
[1761548166068,2.1611392,1154.5,1152.2,0.56599216]
[1761548166263,2.1611392,1154.5,1152.1,1.616]
[1761548166465,2.1611392,1154.5,1152.2,0.56591582]
[1761548166664,2.1611392,1154.5,1152.1,1.616]
[1761548166964,2.1611392,1154.5,1152.2,0.56591582]
[1761548167165,2.1611392,1154.5,1152.1,1.616]
[1761548167363,2.1611392,1154.5,1152.2,0.56584886]
[1761548167563,2.1611392,1154.5,1152.1,1.616]
[1761548167765,2.1611392,1154.5,1152.2,0.56584886]
[1761548167965,2.1611392,1154.5,1152.1,1.616]
[1761548168168,2.31208882,1154.6,1152.2,0.56567491]
[1761548168366,2.31208882,1154.6,1152.3,0.56567491]
[1761548168564,0.15094962,1154.6,1152.4,0.56548189]
[1761548168764,0.15094962,1154.6,1152.1,1.616]
[1761548169067,0.15094962,1154.6,1152.2,0.56548189]
[1761548169264,0.15094962,1154.6,1152.3,0.56548189]
[1761548169565,2.1611392,1154.5,1152.1,1.616]
[1761548169765,2.1611392,1154.5,1152.2,0.56540513]
[1761548169965,2.1611392,1154.5,1152.3,0.56540513]
[1761548170169,2.1611392,1154.5,1152.1,1.616]
[1761548170368,2.1611392,1154.5,1152.2,0.5650721]
[1761548170568,2.1611392,1154.5,1152.3,0.5650721]
[1761548170769,2.1611392,1154.5,1152.4,0.5650721]
[1761548170971,2.1611392,1154.5,1152.5,0.5650721]
[1761548171172,0.15094962,1154.6,1152.1,1.616]
[1761548171373,0.15094962,1154.6,1152.2,0.56499417]
[1761548171569,0.15094962,1154.6,1152.3,0.56499417]
[1761548171773,0.15094962,1154.6,1152.4,0.56499417]
[1761548171971,0.15094962,1154.6,1152.1,1.616]
[1761548172274,0.15094962,1154.6,1152.2,0.56501594]
[1761548172573,0.15094962,1154.6,1152.3,0.56501594]
[1761548172774,0.15094962,1154.6,1152.4,0.56501594]
[1761548172970,0.15094962,1154.6,1152.5,0.56501594]
[1761548173275,0.15094962,1154.6,1152.1,1.616]
[1761548173476,0.15094962,1154.6,1152.2,0.56451285]
[1761548173774,0.15094962,1154.6,1152.3,0.56451285]
[1761548173974,0.15094962,1154.6,1152.4,0.56451285]
[1761548174171,0.15094962,1154.6,1152.5,0.56451285]
[1761548174475,0.15094962,1154.6,1152.1,1.616]
[1761548174672,0.15094962,1154.6,1152.2,0.56433491]
[1761548174974,0.15094962,1154.6,1152.1,1.616]
[1761548174975,0.15094962,1154.6,1152.3,0.56433491]
[1761548175180,0.15094962,1154.6,1152.4,0.56433491]
[1761548175381,0.15094962,1154.6,1152.5,0.56433491]
[1761548175577,0.15094962,1154.6,1152.1,1.616]
[1761548175781,0.15094962,1154.6,1152.2,0.56417767]
[1761548175981,0.15094962,1154.6,1152.3,0.56417767]
[1761548176176,0.15094962,1154.6,1152.4,0.56417767]
[1761548176378,0.15094962,1154.6,1152.5,0.56417767]
[1761548176579,0.15094962,1154.6,1152.1,1.616]
[1761548176779,0.15094962,1154.6,1152.2,0.56402733]
[1761548176983,0.15094962,1154.6,1152.3,0.56402733]
[1761548177284,0.15094962,1154.6,1152.1,1.616]
[1761548177484,0.15094962,1154.6,1152.2,0.56393961]
[1761548177779,0.15094962,1154.6,1152.3,0.56393961]
[1761548177979,0.15094962,1154.6,1152.4,0.56393961]
[1761548178182,0.15094962,1154.6,1152.1,1.616]
[1761548178383,0.15094962,1154.6,1152.2,0.56377411]
[1761548178583,0.15094962,1154.6,1152.3,0.56377411]
[1761548178783,0.15094962,1154.6,1152.4,0.56377411]
[1761548178980,0.15094962,1154.6,1152.1,1.616]
[1761548179182,0.15094962,1154.6,1152.2,0.56358234]
[1761548179481,0.15094962,1154.6,1152.3,0.56358234]
[1761548179684,0.15094962,1154.6,1152.4,0.56358234]
[1761548179885,0.15094962,1154.6,1152.1,1.616]
[1761548180085,0.15094962,1154.6,1152.2,0.56343567]
[1761548180286,0.15094962,1154.6,1152.3,0.56343567]
[1761548180485,0.15094962,1154.6,1152.4,0.56343567]
[1761548180684,0.15094962,1154.6,1152.1,1.616]
[1761548180886,0.15094962,1154.6,1152.2,0.56326991]
[1761548181182,0.15094962,1154.6,1152.3,0.56326991]
[1761548181384,0.15094962,1154.6,1152.4,0.56326991]
[1761548181581,0.15094962,1154.6,1152.1,1.616]
[1761548181785,0.15094962,1154.6,1152.2,0.56310903]
[1761548181986,0.15094962,1154.6,1152.3,0.56310903]
[1761548182184,0.15094962,1154.6,1152.4,0.56310903]
[1761548182484,0.15094962,1154.6,1152.5,0.56290417]
[1761548182686,0.15094962,1154.6,1152.6,0.56290417]
[1761548182883,0.15094962,1154.6,1152.1,1.616]
[1761548183083,0.15094962,1154.6,1152.2,0.56272741]
[1761548183285,0.15094962,1154.6,1152.3,0.56272741]
[1761548183486,0.15094962,1154.6,1152.4,0.56272741]
[1761548183684,0.15094962,1154.6,1152.5,0.56272741]
[1761548183888,0.15094962,1154.6,1152.6,0.56272741]
[1761548184088,0.15094962,1154.6,1152.1,1.616]
[1761548184285,0.15094962,1154.6,1152.2,0.56244968]
[1761548184485,0.15094962,1154.6,1152.3,0.56244968]
[1761548184688,0.15094962,1154.6,1152.4,0.56244968]
[1761548184884,0.15094962,1154.6,1152.5,0.56244968]
[1761548185085,0.15094962,1154.6,1152.6,0.56244968]
[1761548185286,0.15094962,1154.6,1152.1,1.616]
[1761548185486,0.15094962,1154.6,1152.2,0.5621351]
[1761548185685,0.15094962,1154.6,1152.3,0.5621351]
[1761548185985,0.15094962,1154.6,1152.4,0.5621351]
[1761548186190,0.15094962,1154.6,1152.5,0.5621351]
[1761548186391,0.15094962,1154.6,1152.6,0.5621351]
[1761548186591,0.15094962,1154.6,1152.1,1.616]
[1761548186792,0.15094962,1154.6,1152.2,0.56206006]
[1761548187091,0.15094962,1154.6,1152.3,0.56206006]
[1761548187291,0.15094962,1154.6,1152.4,0.56206006]
[1761548187493,0.15094962,1154.6,1152.5,0.56206006]
[1761548187694,0.15094962,1154.6,1152.1,1.616]
[1761548187889,0.15094962,1154.6,1152.2,0.56200267]
[1761548188191,0.15094962,1154.6,1152.3,0.56200267]
[1761548188492,0.15094962,1154.6,1152.4,0.56200267]
[1761548188693,0.15094962,1154.6,1152.5,0.56178652]
[1761548188888,0.15094962,1154.6,1152.2,0.63997686]
[1761548189089,0.15094962,1154.6,1152.3,0.56178652]
[1761548189293,0.15094962,1154.6,1152.4,0.56178652]
[1761548189494,0.15094962,1154.6,1152.5,0.56178652]
[1761548189694,0.15094962,1154.6,1152.2,0.63997686]
[1761548189994,0.15094962,1154.6,1152.3,0.56159134]
[1761548190191,0.15094962,1154.6,1152.4,0.56159134]
[1761548190492,0.15094962,1154.6,1152.5,0.56159134]
[1761548190694,0.15094962,1154.6,1152.2,0.63997686]
[1761548190996,0.15094962,1154.6,1152.3,0.56149193]
[1761548191194,0.15094962,1154.6,1152.4,0.56149193]
[1761548191395,0.15094962,1154.6,1152.5,0.56149193]
[1761548191597,0.15094962,1154.6,1152.2,0.63997686]
[1761548191798,0.15094962,1154.6,1152.3,0.56139925]
[1761548191996,0.15094962,1154.6,1152.4,0.56139925]
[1761548192193,0.15094962,1154.6,1152.5,0.56139925]
[1761548192393,0.15094962,1154.6,1152.2,0.63997686]
[1761548192597,0.15094962,1154.6,1152.3,0.56132368]
[1761548192892,0.15094962,1154.6,1152.4,0.56132368]
[1761548193097,0.15094962,1154.6,1152.5,0.56132368]
[1761548193293,0.15094962,1154.6,1152.2,0.63997686]
[1761548193498,0.15094962,1154.6,1152.3,0.56125779]
[1761548193796,0.15094962,1154.6,1152.4,0.56125779]
[1761548193995,0.15094962,1154.6,1152.5,0.56125779]
[1761548194195,0.15094962,1154.6,1152.2,0.63997686]
[1761548194394,0.15094962,1154.6,1152.3,0.56124308]
[1761548194598,0.15094962,1154.6,1152.4,0.56124308]
[1761548194903,0.15094962,1154.6,1152.5,0.56124308]
[1761548195198,0.15094962,1154.6,1152.2,0.63997686]
[1761548195497,0.15094962,1154.6,1152.3,0.56115743]
[1761548195695,0.15094962,1154.6,1152.4,0.56115743]
[1761548195897,0.15094962,1154.6,1152.5,0.56115743]
[1761548196097,0.15094962,1154.6,1152.6,0.56115743]
[1761548196295,0.15094962,1154.6,1152.2,0.63997686]
[1761548196495,0.15094962,1154.6,1152.3,0.56118357]
[1761548196694,0.15094962,1154.6,1152.4,0.56118357]
[1761548196896,0.15094962,1154.6,1152.5,0.56118357]
[1761548197197,0.15094962,1154.6,1152.6,0.56118357]
[1761548197396,0.15094962,1154.6,1152.2,0.63997686]
[1761548197600,0.15094962,1154.6,1152.3,0.56117754]
[1761548197800,0.15094962,1154.6,1152.4,0.56117754]
[1761548198096,0.15094962,1154.6,1152.5,0.56117754]
[1761548198301,0.15094962,1154.6,1152.6,0.56117754]
[1761548198596,0.15094962,1154.6,1152.2,0.63997686]
[1761548198801,0.15094962,1154.6,1152.3,0.56108572]
[1761548198999,0.15094962,1154.6,1152.4,0.56108572]
[1761548199202,0.15094962,1154.6,1152.5,0.56108572]
[1761548199499,0.15094962,1154.6,1152.6,0.56108572]
[1761548199702,0.15094962,1154.6,1152.2,0.63997686]
[1761548199902,0.15094962,1154.6,1152.3,0.5611174]
[1761548200101,0.15094962,1154.6,1152.4,0.5611174]
[1761548200302,0.15094962,1154.6,1152.5,0.5611174]
[1761548200598,0.15094962,1154.6,1152.6,0.5611174]
[1761548200802,0.15094962,1154.6,1152.1,1.616]
[1761548201003,0.15094962,1154.6,1152.2,0.56118079]
[1761548201200,0.15094962,1154.6,1152.3,0.56118079]
[1761548201501,0.15094962,1154.6,1152.4,0.56118079]
[1761548201699,0.15094962,1154.6,1152.5,0.56118079]
[1761548201906,0.15094962,1154.6,1152.6,0.56118079]
[1761548202200,0.15094962,1154.6,1152.1,1.616]
[1761548202398,0.15094962,1154.6,1152.2,0.56133124]
[1761548202602,0.15094962,1154.6,1152.3,0.56133124]
[1761548202800,0.15094962,1154.6,1152.4,0.56133124]
[1761548203000,0.15094962,1154.6,1152.5,0.56133124]
[1761548203203,0.15094962,1154.6,1152.6,0.56133124]
[1761548203403,0.15094962,1154.6,1152.1,1.616]
[1761548203604,0.15094962,1154.6,1152.2,0.56141393]
[1761548203802,0.15094962,1154.6,1152.3,0.56141393]
[1761548204001,0.15094962,1154.6,1152.4,0.56141393]
[1761548204205,0.15094962,1154.6,1152.5,0.56141393]
[1761548204405,0.15094962,1154.6,1152.6,0.56141393]
[1761548204705,0.15094962,1154.6,1152.1,1.616]
[1761548204904,0.15094962,1154.6,1152.2,0.56152414]
[1761548205104,0.15094962,1154.6,1152.3,0.56152414]
[1761548205302,0.15094962,1154.6,1152.4,0.56152414]
[1761548205502,0.15094962,1154.6,1152.5,0.56152414]
[1761548205705,0.15094962,1154.6,1152.6,0.56152414]
[1761548205903,0.15094962,1154.6,1152.1,1.616]
[1761548206104,0.15094962,1154.6,1152.2,0.5616375]
[1761548206304,0.15094962,1154.6,1152.3,0.5616375]
[1761548206508,0.15094962,1154.6,1152.4,0.5616375]
[1761548206706,0.15094962,1154.6,1152.5,0.5616375]
[1761548206905,0.15094962,1154.6,1152.6,0.5616375]
[1761548207110,0.15094962,1154.6,1152.1,1.616]
[1761548207311,0.15094962,1154.6,1152.2,0.56177783]
[1761548207510,0.15094962,1154.6,1152.3,0.56177783]
[1761548207713,0.15094962,1154.6,1152.4,0.56177783]
[1761548207913,0.15094962,1154.6,1152.5,0.56177783]
[1761548208107,0.15094962,1154.6,1152.6,0.56177783]
[1761548208408,0.15094962,1154.6,1152.0,0.63997686]
[1761548208610,0.15094962,1154.6,1152.1,0.56211143]
[1761548208811,0.15094962,1154.6,1152.2,0.56211143]
[1761548209010,0.15094962,1154.6,1152.3,0.56211143]
[1761548209207,0.15094962,1154.6,1152.4,0.56211143]
[1761548209415,0.15094962,1154.6,1152.5,0.56211143]
[1761548209711,0.15094962,1154.6,1152.6,0.56211143]
[1761548209913,0.15094962,1154.6,1152.0,0.63997686]
[1761548210113,0.15094962,1154.6,1152.1,0.56224712]
[1761548210409,0.15094962,1154.6,1152.2,0.56224712]
[1761548210612,0.15094962,1154.6,1152.3,0.56224712]
[1761548210909,0.15094962,1154.6,1152.4,2.15824712]
[1761548211113,0.15094962,1154.6,1152.5,0.56224712]
[1761548211314,0.15094962,1154.6,1152.6,0.56224712]
[1761548211514,0.15094962,1154.6,1152.4,1.596]
[1761548211714,0.15094962,1154.6,1152.5,0.56251725]
[1761548212010,0.15094962,1154.6,1152.6,0.56251725]
[1761548212311,0.15094962,1154.6,1152.4,1.596]
[1761548212610,0.15094962,1154.6,1152.5,0.56267429]
[1761548212810,0.15094962,1154.6,1152.6,0.56267429]
[1761548213013,0.15094962,1154.6,1152.4,1.596]
[1761548213209,0.15094962,1154.6,1152.5,0.56267479]
[1761548213413,0.15094962,1154.6,1152.6,0.56267479]
[1761548213710,0.15094962,1154.6,1152.4,1.596]
[1761548213915,0.15094962,1154.6,1152.5,0.56285086]
[1761548214115,0.15094962,1154.6,1152.6,0.56285086]
[1761548214414,0.15094962,1154.6,1152.4,1.596]
[1761548214614,0.15094962,1154.6,1152.5,0.56299404]
[1761548214810,0.15094962,1154.6,1152.6,0.56299404]
[1761548215110,0.15094962,1154.6,1152.4,1.596]
[1761548215411,0.15094962,1154.6,1152.5,0.56301211]
[1761548215711,0.15094962,1154.6,1152.6,0.56301211]
[1761548215914,0.15094962,1154.6,1152.4,1.596]
[1761548216114,0.15094962,1154.6,1152.5,0.56310502]
[1761548216311,0.15094962,1154.6,1152.6,0.56310502]
[1761548216614,0.15094962,1154.6,1152.4,1.596]
[1761548216813,0.15094962,1154.6,1152.5,0.56322676]
[1761548217110,0.15094962,1154.6,1152.6,0.56322676]
[1761548217414,0.15094962,1154.6,1152.7,0.56336082]
[1761548217615,0.15094962,1154.6,1152.4,1.596]
[1761548217808,0.15094962,1154.6,1152.5,0.56336089]
[1761548218013,0.15094962,1154.6,1152.6,0.56336089]
[1761548218213,0.15094962,1154.6,1152.7,0.56336089]
[1761548218509,0.15094962,1154.6,1152.4,1.596]
[1761548218712,0.15094962,1154.6,1152.5,0.56350777]
[1761548218914,0.15094962,1154.6,1152.6,0.56350777]
[1761548219112,0.15094962,1154.6,1152.4,1.596]
[1761548219317,0.15094962,1154.6,1152.5,0.56350835]
[1761548219517,0.15094962,1154.6,1152.6,0.56350835]
[1761548219717,0.15094962,1154.6,1152.7,0.56350835]
[1761548219917,0.15094962,1154.6,1152.4,1.596]
[1761548220217,0.15094962,1154.6,1152.5,0.56367265]
[1761548220417,0.15094962,1154.6,1152.6,0.56367265]
[1761548220617,0.15094962,1154.6,1152.4,1.596]
[1761548220814,0.15094962,1154.6,1152.5,0.56372643]
[1761548221017,0.15094962,1154.6,1152.6,0.56372643]
[1761548221318,0.15094962,1154.6,1152.4,1.596]
[1761548221518,0.15094962,1154.6,1152.5,0.56393094]
[1761548221817,0.15094962,1154.6,1152.6,0.56393094]
[1761548222017,0.15094962,1154.6,1152.4,1.596]
[1761548222316,0.15094962,1154.6,1152.5,0.56394161]
[1761548222516,0.15094962,1154.6,1152.6,0.56394161]
[1761548222714,0.15094962,1154.6,1152.4,1.596]
[1761548223018,0.15094962,1154.6,1152.5,0.5641517]
[1761548223320,0.15094962,1154.6,1152.4,1.596]
[1761548223617,0.15094962,1154.6,1152.5,0.56454198]
[1761548223818,0.15094962,1154.6,1152.4,1.596]
[1761548224016,0.15094962,1154.6,1152.5,0.56430165]
[1761548224314,0.15094962,1154.6,1152.4,1.596]
[1761548224515,0.15094962,1154.6,1152.5,0.56451309]
[1761548224711,0.15094962,1154.6,1152.4,1.596]
[1761548224912,0.15094962,1154.6,1152.5,0.56451338]
[1761548225112,0.15094962,1154.6,1152.4,1.596]
[1761548225312,0.15094962,1154.6,1152.5,0.56468196]
[1761548225618,0.15094962,1154.6,1152.4,1.596]
[1761548225816,0.15094962,1154.6,1152.5,0.5646985]
[1761548226014,0.15094962,1154.6,1152.4,1.596]
[1761548226215,0.15094962,1154.6,1152.5,0.56469194]
[1761548226417,0.15094962,1154.6,1152.6,0.56469194]
[1761548226617,0.15094962,1154.6,1152.4,1.596]
[1761548226820,0.15094962,1154.6,1152.5,0.56487452]
[1761548227020,0.15094962,1154.6,1152.6,0.56487452]
[1761548227218,0.15094962,1154.6,1152.4,1.596]
[1761548227424,0.15094962,1154.6,1152.5,0.56505733]
[1761548227621,0.15094962,1154.6,1152.6,0.56505733]
[1761548227920,0.15094962,1154.6,1152.4,1.596]
[1761548228218,0.15094962,1154.6,1152.5,0.56497044]
[1761548228418,0.15094962,1154.6,1152.6,0.56497044]
[1761548228621,0.15094962,1154.6,1152.4,1.596]
[1761548228821,0.15094962,1154.6,1152.5,0.56510591]
[1761548229122,0.15094962,1154.6,1152.6,0.56510591]
[1761548229322,0.15094962,1154.6,1152.7,0.56505602]
[1761548229518,0.15094962,1154.6,1152.4,1.596]
[1761548229519,2.1611392,1154.5,1152.4,2.23697267]
[1761548229821,2.1611392,1154.5,1152.5,0.56505602]
[1761548230020,2.1611392,1154.5,1152.6,0.56505602]
[1761548230222,2.1611392,1154.5,1152.7,0.56505602]
[1761548230423,2.1611392,1154.5,1152.4,2.23697267]
[1761548230724,2.1611392,1154.5,1152.5,0.56515012]
[1761548230922,2.1611392,1154.5,1152.4,2.23697267]
[1761548230923,2.1611392,1154.5,1152.6,0.56515012]
[1761548231120,2.1611392,1154.5,1152.7,0.56515012]
[1761548231323,2.1611392,1154.5,1152.4,2.23697267]
[1761548231521,2.1611392,1154.5,1152.5,0.56519406]
[1761548231724,2.1611392,1154.5,1152.6,0.56519406]
[1761548231924,2.1611392,1154.5,1152.7,0.56519406]
[1761548232125,2.1611392,1154.5,1152.4,2.23697267]
[1761548232325,2.1611392,1154.5,1152.5,0.5652472]
[1761548232623,2.1611392,1154.5,1152.6,0.5652472]
[1761548232820,2.1611392,1154.5,1152.7,0.5652472]
[1761548233024,2.1611392,1154.5,1152.4,2.23697267]
[1761548233223,2.1611392,1154.5,1152.5,0.56531121]
[1761548233424,2.1611392,1154.5,1152.6,0.56531121]
[1761548233623,2.1611392,1154.5,1152.7,0.56531121]
[1761548233826,2.1611392,1154.5,1152.4,1.596]
[1761548234022,2.1611392,1154.5,1152.5,0.56533434]
[1761548234222,2.31208882,1154.6,1152.6,0.56533434]
[1761548234425,2.31208882,1154.6,1152.7,0.56533434]
[1761548234625,0.15094962,1154.6,1152.8,0.56522301]
[1761548234826,2.1611392,1155.6,1152.9,0.56464834]
[1761548235122,0.15089529,1154.6,1153.0,0.56464834]
[1761548235325,2.1611392,1155.7,1153.1,0.56464834]
[1761548235526,0.15085277,1154.6,1152.6,0.64097267]
[1761548235821,2.1611392,1155.9,1152.7,0.56451777]
[1761548236024,0.15086258,1154.6,1152.8,0.56451777]
[1761548236328,2.1611392,1155.9,1152.9,0.56451777]
[1761548236528,2.1611392,1155.9,1153.0,0.56451777]
[1761548236726,0.1508495,1154.6,1153.1,0.56451777]
[1761548236929,2.1611392,1155.8,1152.5,0.64097267]
[1761548237125,0.1508397,1154.6,1152.6,0.56433584]
[1761548237329,0.1508397,1154.6,1152.7,0.56433584]
[1761548237525,2.1611392,1155.8,1152.8,0.56433584]
[1761548237725,0.15085931,1154.6,1152.9,0.56433584]
[1761548237926,0.15085931,1154.6,1153.0,0.56433584]
[1761548238126,2.1611392,1155.7,1153.1,0.56433584]
[1761548238332,0.1508495,1154.6,1152.5,0.64097267]
[1761548238528,0.1508495,1154.6,1152.6,0.56422847]
[1761548238723,2.1611392,1155.6,1152.7,0.56422847]
[1761548238927,0.15086585,1154.6,1152.8,0.56422847]
[1761548239126,2.1611392,1155.6,1152.9,0.56422847]
[1761548239329,2.1611392,1155.6,1153.0,0.56422847]
[1761548239631,0.15085931,1154.6,1153.1,0.56422847]
[1761548239829,2.1611392,1155.7,1152.5,0.64097267]
[1761548240028,0.15085277,1155.0,1152.6,0.56416826]
[1761548240333,0.15085277,1155.0,1152.7,0.56416826]
[1761548240627,0.15085277,1155.0,1152.8,0.56416826]
[1761548240830,0.15085277,1155.0,1152.9,0.56416826]
[1761548241029,0.15085277,1155.0,1153.0,0.56416826]
[1761548241227,0.15085277,1155.0,1152.5,0.64097267]
[1761548241429,0.15085277,1155.0,1152.6,0.56393797]